[Event "Titled Tuesday Blitz August 15 Late 2023"]
[White "Martinez, Shawn"]
[Black "Santos, Marcus Vinicius Moreira"]
[WhiteFideId "2039770"]
[BlackFideId "2103125"]
[WhiteElo "2323"]
[BlackElo "2444"]
[Result "0-1"]
[Round "3"]
[TimeControl "180+1"]
[Date "2023.08.15"]
[WhiteClock "0:00:00"]
[BlackClock "0:00:09"]
[Board "135"]

1. e4 {[%clk 0:03:00]}  c5 {[%clk 0:02:56]} 2. Nc3 {[%clk 0:03:00]}  e6 {[%clk 0:02:57]} 3. g3 {[%clk 0:02:59]}  a6 {[%clk 0:02:56]} 4. Bg2 {[%clk 0:03:00]}  b5 {[%clk 0:02:56]} 5. Nh3 {[%clk 0:02:59]}  Bb7 {[%clk 0:02:55]} 6. d3 {[%clk 0:02:59]}  Nf6 {[%clk 0:02:53]} 7. O-O {[%clk 0:02:55]}  Be7 {[%clk 0:02:43]} 8. f4 {[%clk 0:02:36]}  d6 {[%clk 0:02:29]} 9. Nf2 {[%clk 0:02:22]}  Qc7 {[%clk 0:02:23]} 10. f5 {[%clk 0:02:11]}  e5 {[%clk 0:02:19]} 11. g4 {[%clk 0:02:05]}  h6 {[%clk 0:02:18]} 12. h3 {[%clk 0:01:43]}  b4 {[%clk 0:02:13]} 13. Nd5 {[%clk 0:01:33]}  Nxd5 {[%clk 0:02:03]} 14. exd5 {[%clk 0:01:34]}  Nd7 {[%clk 0:02:04]} 15. Be3 {[%clk 0:01:24]}  Nf6 {[%clk 0:02:01]} 16. c4 {[%clk 0:01:07]}  bxc3 {[%clk 0:02:00]} 17. Qa4+ {[%clk 0:01:01]}  Qd7 {[%clk 0:01:48]} 18. Qc4 {[%clk 0:01:00]}  cxb2 {[%clk 0:01:42]} 19. Rab1 {[%clk 0:01:00]}  O-O {[%clk 0:01:38]} 20. Rxb2 {[%clk 0:01:00]}  a5 {[%clk 0:01:35]} 21. Rfb1 {[%clk 0:00:34]}  Ba6 {[%clk 0:01:34]} 22. Qc2 {[%clk 0:00:34]}  Nh7 {[%clk 0:01:29]} 23. Ne4 {[%clk 0:00:33]}  Qc7 {[%clk 0:01:20]} 24. Qd2 {[%clk 0:00:33]}  Rfb8 {[%clk 0:01:14]} 25. Bf1 {[%clk 0:00:28]}  Rxb2 {[%clk 0:01:01]} 26. Rxb2 {[%clk 0:00:28]}  Bb7 {[%clk 0:00:49]} 27. Nc3 {[%clk 0:00:27]}  Nf6 {[%clk 0:00:42]} 28. Bg2 {[%clk 0:00:27]}  Rb8 {[%clk 0:00:35]} 29. a4 {[%clk 0:00:18]}  Ba8 {[%clk 0:00:32]} 30. Nb5 {[%clk 0:00:18]}  Qb6 {[%clk 0:00:29]} 31. Qe1 {[%clk 0:00:08]}  Bxd5 {[%clk 0:00:24]} 32. Bxd5 {[%clk 0:00:06]}  Nxd5 {[%clk 0:00:25]} 33. Bd2 {[%clk 0:00:07]}  Bg5 {[%clk 0:00:22]} 34. Bxa5 {[%clk 0:00:06]}  Qc6 {[%clk 0:00:17]} 35. Bd2 {[%clk 0:00:06]}  Bxd2 {[%clk 0:00:15]} 36. Qxd2 {[%clk 0:00:07]}  Nf4 {[%clk 0:00:16]} 37. Kh2 {[%clk 0:00:07]}  Ra8 {[%clk 0:00:14]} 38. Nc3 {[%clk 0:00:07]}  Qf3 {[%clk 0:00:11]} 39. Ne4 {[%clk 0:00:03]}  Qxh3+ {[%clk 0:00:11]} 40. Kg1 {[%clk 0:00:03]}  Qxg4+ {[%clk 0:00:11]} 41. Kf1 {[%clk 0:00:03]}  Qf3+ {[%clk 0:00:10]} 42. Kg1 {[%clk 0:00:03]}  Nxd3 {[%clk 0:00:09]} 43. Qg2 {[%clk 0:00:02]}  Qxg2+ {[%clk 0:00:09]} 44. Rxg2 {[%clk 0:00:00]}  Rxa4 {[%clk 0:00:09]} 0-1


[Site "https://www.chess.com"]

[Event "Titled Tuesday Blitz August 15 Late 2023"]
[White "Schut, Han"]
[Black "The_Straightforward_Rook"]
[WhiteFideId "1005561"]
[WhiteElo "2244"]
[BlackElo "2427"]
[Result "0-1"]
[Round "3"]
[TimeControl "180+1"]
[Date "2023.08.15"]
[WhiteClock "0:00:00"]
[BlackClock "0:00:26"]
[Board "137"]

1. e4 {[%clk 0:03:00]}  e5 {[%clk 0:02:59]} 2. Nf3 {[%clk 0:03:01]}  Nc6 {[%clk 0:02:59]} 3. Bc4 {[%clk 0:03:01]}  Bc5 {[%clk 0:02:59]} 4. c3 {[%clk 0:02:56]}  Nf6 {[%clk 0:02:58]} 5. d4 {[%clk 0:02:56]}  exd4 {[%clk 0:02:58]} 6. b4 {[%clk 0:02:57]}  Bb6 {[%clk 0:02:56]} 7. e5 {[%clk 0:02:57]}  Ne4 {[%clk 0:02:50]} 8. Bd5 {[%clk 0:02:36]}  Nxc3 {[%clk 0:02:43]} 9. Nxc3 {[%clk 0:02:37]}  dxc3 {[%clk 0:02:42]} 10. Bg5 {[%clk 0:02:38]}  Ne7 {[%clk 0:02:41]} 11. O-O {[%clk 0:02:38]}  O-O {[%clk 0:02:38]} 12. Bb3 {[%clk 0:02:31]}  Qe8 {[%clk 0:02:27]} 13. Re1 {[%clk 0:02:30]}  a5 {[%clk 0:02:12]} 14. Qd3 {[%clk 0:02:22]}  axb4 {[%clk 0:02:04]} 15. h4 {[%clk 0:02:20]}  Ng6 {[%clk 0:01:53]} 16. h5 {[%clk 0:02:13]}  Nh8 {[%clk 0:01:47]} 17. Bc2 {[%clk 0:02:09]}  g6 {[%clk 0:01:48]} 18. Bf6 {[%clk 0:02:03]}  Qe6 {[%clk 0:01:39]} 19. Ng5 {[%clk 0:01:42]}  Qg4 {[%clk 0:01:39]} 20. h6 {[%clk 0:01:26]}  d6 {[%clk 0:01:16]} 21. Bb3 {[%clk 0:01:08]}  Qf5 {[%clk 0:01:09]} 22. Qxf5 {[%clk 0:00:52]}  Bxf5 {[%clk 0:01:09]} 23. exd6 {[%clk 0:00:34]}  cxd6 {[%clk 0:01:06]} 24. Re7 {[%clk 0:00:29]}  c2 {[%clk 0:01:01]} 25. Bxh8 {[%clk 0:00:25]}  Kxh8 {[%clk 0:01:01]} 26. Nxf7+ {[%clk 0:00:23]}  Rxf7 {[%clk 0:01:00]} 27. Rxf7 {[%clk 0:00:23]}  Bd4 {[%clk 0:00:47]} 28. Rc1 {[%clk 0:00:21]}  Rc8 {[%clk 0:00:42]} 29. Rxc2 {[%clk 0:00:09]}  Bxc2 {[%clk 0:00:42]} 30. Bxc2 {[%clk 0:00:10]}  b6 {[%clk 0:00:39]} 31. Bb3 {[%clk 0:00:10]}  Be5 {[%clk 0:00:34]} 32. g3 {[%clk 0:00:10]}  Bd4 {[%clk 0:00:33]} 33. Kg2 {[%clk 0:00:09]}  Bc5 {[%clk 0:00:30]} 34. f4 {[%clk 0:00:07]}  Rd8 {[%clk 0:00:30]} 35. Kf3 {[%clk 0:00:06]}  d5 {[%clk 0:00:30]} 36. Ke2 {[%clk 0:00:07]}  Kg8 {[%clk 0:00:30]} 37. Rg7+ {[%clk 0:00:06]}  Kh8 {[%clk 0:00:30]} 38. Rf7 {[%clk 0:00:04]}  Re8+ {[%clk 0:00:29]} 39. Kd2 {[%clk 0:00:00]}  Rd8 {[%clk 0:00:26]} 0-1


[Site "https://www.chess.com"]

[Event "Titled Tuesday Blitz August 15 Late 2023"]
[White "Kielinkei"]
[Black "Sarkar, Justin"]
[BlackFideId "2010011"]
[WhiteElo "2408"]
[BlackElo "2235"]
[Result "1-0"]
[Round "3"]
[TimeControl "180+1"]
[Date "2023.08.15"]
[WhiteClock "0:00:14"]
[BlackClock "0:00:00"]
[Board "138"]

1. c4 {[%clk 0:03:00]}  e5 {[%clk 0:02:38]} 2. Nc3 {[%clk 0:03:00]}  Nf6 {[%clk 0:02:37]} 3. g3 {[%clk 0:03:00]}  Bb4 {[%clk 0:02:28]} 4. Bg2 {[%clk 0:02:59]}  O-O {[%clk 0:02:26]} 5. e3 {[%clk 0:02:59]}  Bxc3 {[%clk 0:02:24]} 6. bxc3 {[%clk 0:03:00]}  e4 {[%clk 0:02:18]} 7. f3 {[%clk 0:02:44]}  exf3 {[%clk 0:02:04]} 8. Nxf3 {[%clk 0:02:44]}  d6 {[%clk 0:02:02]} 9. O-O {[%clk 0:02:44]}  Nc6 {[%clk 0:01:53]} 10. d3 {[%clk 0:02:44]}  Bg4 {[%clk 0:01:48]} 11. h3 {[%clk 0:02:36]}  Bd7 {[%clk 0:01:40]} 12. e4 {[%clk 0:02:35]}  h6 {[%clk 0:01:35]} 13. Nh4 {[%clk 0:02:28]}  Kh7 {[%clk 0:01:00]} 14. Be3 {[%clk 0:02:21]}  Ne5 {[%clk 0:00:54]} 15. Nf5 {[%clk 0:02:13]}  Ng8 {[%clk 0:00:51]} 16. Qd2 {[%clk 0:02:08]}  h5 {[%clk 0:00:33]} 17. Bg5 {[%clk 0:01:37]}  Qc8 {[%clk 0:00:29]} 18. Kh2 {[%clk 0:01:22]}  g6 {[%clk 0:00:29]} 19. Ne7 {[%clk 0:01:13]}  Nxe7 {[%clk 0:00:26]} 20. Bxe7 {[%clk 0:01:14]}  Re8 {[%clk 0:00:25]} 21. Bf6 {[%clk 0:01:14]}  Be6 {[%clk 0:00:20]} 22. Rf2 {[%clk 0:01:11]}  Nd7 {[%clk 0:00:17]} 23. Bd4 {[%clk 0:01:06]}  Ne5 {[%clk 0:00:16]} 24. Raf1 {[%clk 0:01:04]}  Qd8 {[%clk 0:00:10]} 25. Rf6 {[%clk 0:00:46]}  Qe7 {[%clk 0:00:07]} 26. R6f2 {[%clk 0:00:27]}  c5 {[%clk 0:00:07]} 27. Be3 {[%clk 0:00:27]}  Rf8 {[%clk 0:00:05]} 28. Bg5 {[%clk 0:00:27]}  Qe8 {[%clk 0:00:04]} 29. Bf6 {[%clk 0:00:26]}  Nd7 {[%clk 0:00:04]} 30. Bg5 {[%clk 0:00:26]}  Ne5 {[%clk 0:00:04]} 31. Qe2 {[%clk 0:00:24]}  b6 {[%clk 0:00:02]} 32. Qe3 {[%clk 0:00:24]}  Rc8 {[%clk 0:00:02]} 33. Bh6 {[%clk 0:00:25]}  Rg8 {[%clk 0:00:01]} 34. Bg5 {[%clk 0:00:25]}  Qd7 {[%clk 0:00:01]} 35. Bf6 {[%clk 0:00:25]}  Qe8 {[%clk 0:00:01]} 36. Rd1 {[%clk 0:00:22]}  Nd7 {[%clk 0:00:01]} 37. Bg5 {[%clk 0:00:21]}  Ne5 {[%clk 0:00:02]} 38. Bf4 {[%clk 0:00:20]}  Nd7 {[%clk 0:00:02]} 39. Re1 {[%clk 0:00:19]}  Ne5 {[%clk 0:00:02]} 40. Bg5 {[%clk 0:00:19]}  Qc6 {[%clk 0:00:01]} 41. Bf6 {[%clk 0:00:18]}  Qe8 {[%clk 0:00:01]} 42. Rd1 {[%clk 0:00:15]}  Nd7 {[%clk 0:00:01]} 43. Bg5 {[%clk 0:00:14]}  Ne5 {[%clk 0:00:02]} 44. Bh1 {[%clk 0:00:14]}  Rc7 {[%clk 0:00:00]} 45. Bf4 {[%clk 0:00:14]} 1-0


[Site "https://www.chess.com"]

[Event "Titled Tuesday Blitz August 15 Late 2023"]
[White "Silva Lucena, Cristian"]
[Black "cthake"]
[WhiteFideId "2232588"]
[WhiteElo "2379"]
[BlackElo "1827"]
[Result "1-0"]
[Round "3"]
[TimeControl "180+1"]
[Date "2023.08.15"]
[WhiteClock "0:02:14"]
[BlackClock "0:00:19"]
[Board "139"]

1. Nf3 {[%clk 0:03:00]}  Nf6 {[%clk 0:02:57]} 2. c4 {[%clk 0:02:58]}  c5 {[%clk 0:02:56]} 3. d4 {[%clk 0:02:58]}  cxd4 {[%clk 0:02:53]} 4. Nxd4 {[%clk 0:02:59]}  g6 {[%clk 0:02:52]} 5. g3 {[%clk 0:02:59]}  Bg7 {[%clk 0:02:52]} 6. Bg2 {[%clk 0:03:00]}  O-O {[%clk 0:02:48]} 7. O-O {[%clk 0:02:59]}  Nc6 {[%clk 0:02:47]} 8. Nc2 {[%clk 0:02:57]}  d6 {[%clk 0:02:46]} 9. Nc3 {[%clk 0:02:57]}  Be6 {[%clk 0:02:36]} 10. b3 {[%clk 0:02:57]}  a5 {[%clk 0:02:29]} 11. Bb2 {[%clk 0:02:49]}  Nd7 {[%clk 0:02:01]} 12. Rb1 {[%clk 0:02:42]}  Nc5 {[%clk 0:02:01]} 13. Nb5 {[%clk 0:02:35]}  Bxb2 {[%clk 0:01:57]} 14. Rxb2 {[%clk 0:02:36]}  Bf5 {[%clk 0:01:51]} 15. Ne3 {[%clk 0:02:30]}  Ne4 {[%clk 0:01:34]} 16. g4 {[%clk 0:02:22]}  Bd7 {[%clk 0:00:38]} 17. Bxe4 {[%clk 0:02:19]}  Bxg4 {[%clk 0:00:29]} 18. Nxg4 {[%clk 0:02:17]}  f5 {[%clk 0:00:29]} 19. Bd5+ {[%clk 0:02:17]}  Kg7 {[%clk 0:00:19]} 20. Nd4 {[%clk 0:02:14]} 1-0


[Site "https://www.chess.com"]

[Event "Titled Tuesday Blitz August 15 Late 2023"]
[White "Tqebuchava, Zurab"]
[Black "Grigorov, Grigor"]
[WhiteFideId "13601113"]
[BlackFideId "2907313"]
[WhiteElo "2179"]
[BlackElo "2820"]
[Result "0-1"]
[Round "3"]
[TimeControl "180+1"]
[Date "2023.08.15"]
[WhiteClock "0:00:00"]
[BlackClock "0:00:38"]
[Board "140"]

1. e4 {[%clk 0:02:54]}  c6 {[%clk 0:02:59]} 2. d4 {[%clk 0:02:49]}  d5 {[%clk 0:03:00]} 3. exd5 {[%clk 0:02:48]}  cxd5 {[%clk 0:03:00]} 4. Bd3 {[%clk 0:02:48]}  Nf6 {[%clk 0:03:00]} 5. Nf3 {[%clk 0:02:47]}  Bg4 {[%clk 0:02:57]} 6. h3 {[%clk 0:02:46]}  Bh5 {[%clk 0:02:57]} 7. O-O {[%clk 0:02:43]}  Nc6 {[%clk 0:02:57]} 8. c3 {[%clk 0:02:43]}  e6 {[%clk 0:02:57]} 9. Bf4 {[%clk 0:02:41]}  Bd6 {[%clk 0:02:56]} 10. Bxd6 {[%clk 0:02:40]}  Qxd6 {[%clk 0:02:56]} 11. Nbd2 {[%clk 0:02:39]}  O-O {[%clk 0:02:53]} 12. Re1 {[%clk 0:02:32]}  Qc7 {[%clk 0:02:53]} 13. Qc2 {[%clk 0:02:16]}  Rac8 {[%clk 0:02:52]} 14. Rac1 {[%clk 0:02:09]}  Bg6 {[%clk 0:02:43]} 15. Bxg6 {[%clk 0:02:08]}  hxg6 {[%clk 0:02:43]} 16. Qd3 {[%clk 0:02:07]}  Nd7 {[%clk 0:02:40]} 17. Ng5 {[%clk 0:02:01]}  Rfe8 {[%clk 0:02:34]} 18. Qf3 {[%clk 0:01:55]}  Nf8 {[%clk 0:02:30]} 19. Qg4 {[%clk 0:01:52]}  Qd7 {[%clk 0:02:15]} 20. Re3 {[%clk 0:01:38]}  f6 {[%clk 0:02:11]} 21. Ngf3 {[%clk 0:01:32]}  Ne7 {[%clk 0:02:06]} 22. Rce1 {[%clk 0:01:25]}  Nf5 {[%clk 0:02:05]} 23. R3e2 {[%clk 0:01:25]}  g5 {[%clk 0:01:59]} 24. h4 {[%clk 0:01:13]}  Nh6 {[%clk 0:01:56]} 25. Qg3 {[%clk 0:01:05]}  g4 {[%clk 0:01:56]} 26. Nh2 {[%clk 0:01:03]}  f5 {[%clk 0:01:53]} 27. h5 {[%clk 0:01:00]}  Qc7 {[%clk 0:01:50]} 28. Qxc7 {[%clk 0:00:59]}  Rxc7 {[%clk 0:01:51]} 29. Re5 {[%clk 0:00:52]}  Kf7 {[%clk 0:01:46]} 30. Ndf1 {[%clk 0:00:47]}  Nd7 {[%clk 0:01:44]} 31. R5e2 {[%clk 0:00:45]}  Nf6 {[%clk 0:01:43]} 32. Ng3 {[%clk 0:00:44]}  f4 {[%clk 0:01:43]} 33. Ngf1 {[%clk 0:00:41]}  Nxh5 {[%clk 0:01:42]} 34. Re5 {[%clk 0:00:37]}  Nf6 {[%clk 0:01:41]} 35. Nd2 {[%clk 0:00:31]}  Nf5 {[%clk 0:01:38]} 36. Ndf1 {[%clk 0:00:27]}  g5 {[%clk 0:01:36]} 37. Nd2 {[%clk 0:00:27]}  Rc6 {[%clk 0:01:29]} 38. Nhf1 {[%clk 0:00:26]}  Rg8 {[%clk 0:01:24]} 39. Nb3 {[%clk 0:00:26]}  b6 {[%clk 0:01:19]} 40. Nc1 {[%clk 0:00:26]}  Ne4 {[%clk 0:01:18]} 41. Nd3 {[%clk 0:00:24]}  Kf6 {[%clk 0:01:13]} 42. Re2 {[%clk 0:00:18]}  Rh8 {[%clk 0:01:10]} 43. Nd2 {[%clk 0:00:17]}  Nxd2 {[%clk 0:00:56]} 44. Rxd2 {[%clk 0:00:17]}  g3 {[%clk 0:00:57]} 45. fxg3 {[%clk 0:00:13]}  Nxg3 {[%clk 0:00:56]} 46. Nf2 {[%clk 0:00:12]}  Rh4 {[%clk 0:00:49]} 47. Nh3 {[%clk 0:00:10]}  Ne4 {[%clk 0:00:45]} 48. Re2 {[%clk 0:00:08]}  Rc7 {[%clk 0:00:43]} 49. Nxg5 {[%clk 0:00:06]}  Nxg5 {[%clk 0:00:42]} 50. Rf2 {[%clk 0:00:03]}  Rch7 {[%clk 0:00:40]} 51. Kf1 {[%clk 0:00:02]}  Ne4 {[%clk 0:00:38]} 52. Ke2 {[%clk 0:00:00]}  Nxf2 {[%clk 0:00:38]} 0-1


[Site "https://www.chess.com"]

[Event "Titled Tuesday Blitz August 15 Late 2023"]
[White "GaiozNigalidze"]
[Black "Kiselev, Pavel"]
[BlackFideId "4191102"]
[WhiteElo "2714"]
[BlackElo "2316"]
[Result "1-0"]
[Round "3"]
[TimeControl "180+1"]
[Date "2023.08.15"]
[WhiteClock "0:01:48"]
[BlackClock "0:02:02"]
[Board "142"]

1. e4 {[%clk 0:02:55]}  Nc6 {[%clk 0:02:58]} 2. c4 {[%clk 0:02:53]}  e5 {[%clk 0:02:57]} 3. Nc3 {[%clk 0:02:53]}  Nf6 {[%clk 0:02:56]} 4. Nf3 {[%clk 0:02:54]}  d6 {[%clk 0:02:57]} 5. Bd3 {[%clk 0:02:54]}  Bd7 {[%clk 0:02:52]} 6. h3 {[%clk 0:02:54]}  Nb4 {[%clk 0:02:52]} 7. Be2 {[%clk 0:02:52]}  Be7 {[%clk 0:02:50]} 8. d4 {[%clk 0:02:49]}  exd4 {[%clk 0:02:50]} 9. Nxd4 {[%clk 0:02:50]}  Nc6 {[%clk 0:02:51]} 10. Nf5 {[%clk 0:02:48]}  O-O {[%clk 0:02:49]} 11. O-O {[%clk 0:02:32]}  Re8 {[%clk 0:02:48]} 12. Ng3 {[%clk 0:02:24]}  Bf8 {[%clk 0:02:47]} 13. b3 {[%clk 0:02:23]}  g6 {[%clk 0:02:46]} 14. Bb2 {[%clk 0:02:23]}  Bg7 {[%clk 0:02:46]} 15. Rb1 {[%clk 0:02:23]}  Qe7 {[%clk 0:02:42]} 16. Re1 {[%clk 0:02:22]}  Nd4 {[%clk 0:02:37]} 17. Qxd4 {[%clk 0:02:16]}  Ng4 {[%clk 0:02:24]} 18. Qxg7+ {[%clk 0:02:15]}  Kxg7 {[%clk 0:02:24]} 19. Nd5+ {[%clk 0:02:15]}  Nf6 {[%clk 0:02:12]} 20. Nxe7 {[%clk 0:02:04]}  Rxe7 {[%clk 0:02:13]} 21. c5 {[%clk 0:02:01]}  dxc5 {[%clk 0:02:13]} 22. e5 {[%clk 0:02:00]}  Nd5 {[%clk 0:02:08]} 23. e6+ {[%clk 0:02:01]}  f6 {[%clk 0:02:06]} 24. exd7 {[%clk 0:02:01]}  Rxd7 {[%clk 0:02:07]} 25. Rbd1 {[%clk 0:02:00]}  Rad8 {[%clk 0:02:06]} 26. Bg4 {[%clk 0:01:59]}  Rd6 {[%clk 0:02:05]} 27. h4 {[%clk 0:01:58]}  Nb6 {[%clk 0:02:01]} 28. Rxd6 {[%clk 0:01:56]}  Rxd6 {[%clk 0:02:02]} 29. Re7+ {[%clk 0:01:56]}  Kg8 {[%clk 0:02:03]} 30. Ne4 {[%clk 0:01:53]}  Rd2 {[%clk 0:02:02]} 31. Be6+ {[%clk 0:01:48]} 1-0


[Site "https://www.chess.com"]

[Event "Titled Tuesday Blitz August 15 Late 2023"]
[White "Okike, David"]
[Black "Musovic, Armin"]
[WhiteFideId "8500134"]
[BlackFideId "939935"]
[WhiteElo "2314"]
[BlackElo "2550"]
[Result "1-0"]
[Round "3"]
[TimeControl "180+1"]
[Date "2023.08.15"]
[WhiteClock "0:01:13"]
[BlackClock "0:00:22"]
[Board "145"]

1. e4 {[%clk 0:03:00]}  c6 {[%clk 0:02:58]} 2. d4 {[%clk 0:03:00]}  d5 {[%clk 0:02:59]} 3. e5 {[%clk 0:03:00]}  c5 {[%clk 0:02:59]} 4. dxc5 {[%clk 0:03:00]}  e6 {[%clk 0:03:00]} 5. a3 {[%clk 0:03:00]}  Nc6 {[%clk 0:03:00]} 6. Nf3 {[%clk 0:03:00]}  Bxc5 {[%clk 0:02:59]} 7. b4 {[%clk 0:03:01]}  Be7 {[%clk 0:02:59]} 8. Bb2 {[%clk 0:03:01]}  g5 {[%clk 0:02:59]} 9. h3 {[%clk 0:02:58]}  a5 {[%clk 0:02:57]} 10. b5 {[%clk 0:02:57]}  Na7 {[%clk 0:02:57]} 11. Bd3 {[%clk 0:02:57]}  h6 {[%clk 0:02:57]} 12. a4 {[%clk 0:02:56]}  Bd7 {[%clk 0:02:56]} 13. O-O {[%clk 0:02:55]}  Nc8 {[%clk 0:02:57]} 14. Nbd2 {[%clk 0:02:53]}  Nb6 {[%clk 0:02:57]} 15. c4 {[%clk 0:02:54]}  dxc4 {[%clk 0:02:58]} 16. Nxc4 {[%clk 0:02:54]}  Nxc4 {[%clk 0:02:56]} 17. Bxc4 {[%clk 0:02:54]}  Rc8 {[%clk 0:02:55]} 18. Qe2 {[%clk 0:02:54]}  g4 {[%clk 0:02:51]} 19. hxg4 {[%clk 0:02:52]}  h5 {[%clk 0:02:52]} 20. gxh5 {[%clk 0:02:41]}  Rxh5 {[%clk 0:02:53]} 21. Rfd1 {[%clk 0:02:38]}  Bc5 {[%clk 0:02:46]} 22. Rac1 {[%clk 0:02:38]}  Qe7 {[%clk 0:02:43]} 23. g3 {[%clk 0:02:37]}  Nh6 {[%clk 0:02:39]} 24. Kg2 {[%clk 0:02:37]}  Ng4 {[%clk 0:02:26]} 25. Rh1 {[%clk 0:02:31]}  Rxh1 {[%clk 0:02:26]} 26. Rxh1 {[%clk 0:02:30]}  Kd8 {[%clk 0:02:26]} 27. Nd4 {[%clk 0:02:27]}  Qg5 {[%clk 0:02:21]} 28. f4 {[%clk 0:02:26]}  Qg7 {[%clk 0:02:14]} 29. Rh4 {[%clk 0:02:24]}  Nh6 {[%clk 0:02:14]} 30. Bd3 {[%clk 0:02:21]}  Kc7 {[%clk 0:02:12]} 31. Nb3 {[%clk 0:02:19]}  Rg8 {[%clk 0:02:03]} 32. Rh3 {[%clk 0:02:07]}  Bb6 {[%clk 0:01:44]} 33. Qd2 {[%clk 0:02:03]}  Ng4 {[%clk 0:01:41]} 34. Bd4 {[%clk 0:01:51]}  Bxd4 {[%clk 0:01:37]} 35. Nxd4 {[%clk 0:01:51]}  b6 {[%clk 0:01:33]} 36. Be4 {[%clk 0:01:50]}  Rc8 {[%clk 0:01:28]} 37. Nc6 {[%clk 0:01:44]}  Qf8 {[%clk 0:01:15]} 38. Rh4 {[%clk 0:01:36]}  f5 {[%clk 0:01:15]} 39. Rh7 {[%clk 0:01:30]}  Qe8 {[%clk 0:01:10]} 40. Bf3 {[%clk 0:01:29]}  Rd8 {[%clk 0:00:43]} 41. Nxd8 {[%clk 0:01:28]}  Kxd8 {[%clk 0:00:41]} 42. Qd6 {[%clk 0:01:28]}  Kc8 {[%clk 0:00:40]} 43. Qxb6 {[%clk 0:01:27]}  Ne3+ {[%clk 0:00:29]} 44. Qxe3 {[%clk 0:01:24]}  Qg8 {[%clk 0:00:29]} 45. Rh6 {[%clk 0:01:17]}  Qf8 {[%clk 0:00:23]} 46. Rh7 {[%clk 0:01:16]}  Qg8 {[%clk 0:00:23]} 47. Qc5+ {[%clk 0:01:16]}  Kd8 {[%clk 0:00:22]} 48. Qb6+ {[%clk 0:01:15]}  Ke8 {[%clk 0:00:22]} 49. Qb8+ {[%clk 0:01:13]} 1-0


[Site "https://www.chess.com"]

[Event "Titled Tuesday Blitz August 15 Late 2023"]
[White "Hirneise, Jens"]
[Black "Manon-og, Ramon Jr."]
[WhiteFideId "24614734"]
[BlackFideId "5200776"]
[WhiteElo "2492"]
[BlackElo "2307"]
[Result "1/2-1/2"]
[Round "3"]
[TimeControl "180+1"]
[Date "2023.08.15"]
[WhiteClock "0:00:03"]
[BlackClock "0:00:39"]
[Board "147"]

1. d4 {[%clk 0:03:00]}  Nf6 {[%clk 0:02:59]} 2. c4 {[%clk 0:03:00]}  g6 {[%clk 0:03:00]} 3. Bf4 {[%clk 0:03:00]}  d5 {[%clk 0:03:00]} 4. Nc3 {[%clk 0:02:59]}  Bg7 {[%clk 0:03:00]} 5. e3 {[%clk 0:02:58]}  c5 {[%clk 0:02:59]} 6. Be5 {[%clk 0:02:45]}  cxd4 {[%clk 0:02:59]} 7. exd4 {[%clk 0:02:35]}  O-O {[%clk 0:02:56]} 8. c5 {[%clk 0:02:27]}  Nc6 {[%clk 0:02:55]} 9. Nf3 {[%clk 0:02:25]}  Bg4 {[%clk 0:02:54]} 10. Be2 {[%clk 0:02:24]}  Nxe5 {[%clk 0:02:47]} 11. Nxe5 {[%clk 0:02:22]}  Bf5 {[%clk 0:02:37]} 12. O-O {[%clk 0:02:21]}  Rc8 {[%clk 0:02:32]} 13. Re1 {[%clk 0:02:06]}  Ne4 {[%clk 0:02:28]} 14. Nf3 {[%clk 0:01:57]}  Nxc3 {[%clk 0:02:24]} 15. bxc3 {[%clk 0:01:58]}  b6 {[%clk 0:02:25]} 16. Qa4 {[%clk 0:01:51]}  bxc5 {[%clk 0:02:24]} 17. Qxa7 {[%clk 0:01:50]}  c4 {[%clk 0:02:18]} 18. Bf1 {[%clk 0:01:46]}  Bf6 {[%clk 0:02:15]} 19. Ne5 {[%clk 0:01:44]}  Rb8 {[%clk 0:02:06]} 20. Nc6 {[%clk 0:01:43]}  Qb6 {[%clk 0:02:00]} 21. Qxb6 {[%clk 0:01:31]}  Rxb6 {[%clk 0:02:01]} 22. Nxe7+ {[%clk 0:01:32]}  Bxe7 {[%clk 0:01:54]} 23. Rxe7 {[%clk 0:01:33]}  Ra8 {[%clk 0:01:54]} 24. Re5 {[%clk 0:01:18]}  Be6 {[%clk 0:01:51]} 25. Re2 {[%clk 0:01:13]}  Ra3 {[%clk 0:01:47]} 26. Rc2 {[%clk 0:01:06]}  Bf5 {[%clk 0:01:47]} 27. Rcc1 {[%clk 0:01:03]}  Rb2 {[%clk 0:01:47]} 28. g3 {[%clk 0:00:59]}  Be4 {[%clk 0:01:29]} 29. Bg2 {[%clk 0:00:52]}  f5 {[%clk 0:01:29]} 30. Bf1 {[%clk 0:00:41]}  Kf7 {[%clk 0:01:28]} 31. h4 {[%clk 0:00:37]}  h6 {[%clk 0:01:26]} 32. Bg2 {[%clk 0:00:31]}  Kf6 {[%clk 0:01:22]} 33. Bf1 {[%clk 0:00:29]}  g5 {[%clk 0:01:22]} 34. hxg5+ {[%clk 0:00:29]}  hxg5 {[%clk 0:01:23]} 35. Bg2 {[%clk 0:00:29]}  Ke6 {[%clk 0:01:09]} 36. f3 {[%clk 0:00:22]}  Bc2 {[%clk 0:01:04]} 37. Re1+ {[%clk 0:00:22]}  Kd6 {[%clk 0:01:04]} 38. Re5 {[%clk 0:00:13]}  Bd3 {[%clk 0:00:57]} 39. f4 {[%clk 0:00:11]}  g4 {[%clk 0:00:54]} 40. Rxd5+ {[%clk 0:00:10]}  Ke6 {[%clk 0:00:52]} 41. Re1+ {[%clk 0:00:09]}  Be4 {[%clk 0:00:45]} 42. Bxe4 {[%clk 0:00:08]}  fxe4 {[%clk 0:00:45]} 43. Re5+ {[%clk 0:00:09]}  Kf6 {[%clk 0:00:46]} 44. R1xe4 {[%clk 0:00:07]}  Raxa2 {[%clk 0:00:46]} 45. Re6+ {[%clk 0:00:05]}  Kf7 {[%clk 0:00:46]} 46. Re7+ {[%clk 0:00:05]}  Kf8 {[%clk 0:00:46]} 47. Re8+ {[%clk 0:00:05]}  Kf7 {[%clk 0:00:47]} 48. R8e7+ {[%clk 0:00:05]}  Kf8 {[%clk 0:00:47]} 49. Re8+ {[%clk 0:00:05]}  Kf7 {[%clk 0:00:47]} 50. d5 {[%clk 0:00:04]}  Rg2+ {[%clk 0:00:44]} 51. Kf1 {[%clk 0:00:04]}  Rh2 {[%clk 0:00:44]} 52. R8e7+ {[%clk 0:00:03]}  Kf8 {[%clk 0:00:44]} 53. Re8+ {[%clk 0:00:03]}  Kf7 {[%clk 0:00:44]} 54. Kg1 {[%clk 0:00:02]}  Rag2+ {[%clk 0:00:40]} 55. Kf1 {[%clk 0:00:03]}  Ra2 {[%clk 0:00:39]} 1/2-1/2


[Site "https://www.chess.com"]